fUSD/lending_fUSD_20250809
["ID","MTS","AMOUNT","RATE_DAILY","PERIOD"]
[378057429,1754710240572,-2292.94519518,0.00018614,2]
[378057430,1754710240581,-163.88,0.00018658,2]
[378057431,1754710240591,-4482.66791323,0.00018661,2]
[378057432,1754710240600,-2292.94519518,0.00018676,2]
[378057433,1754710240610,-2031.25469,0.0001868,2]
[378057434,1754710240621,-226.04,0.00018718,2]
[378057435,1754710240630,-4482.66791323,0.00018721,2]
[378057436,1754710240640,-2292.94519518,0.00018737,2]
[378057437,1754710240649,-163.88,0.00018751,2]
[378057438,1754710240658,-2292.94519518,0.00018798,2]
[378057439,1754710240668,-159.71,0.000188,2]
[378057440,1754710240680,-159.71,0.000188,2]
[378057441,1754710240689,-159.71,0.000188,2]
[378057442,1754710240699,-159.71,0.000188,2]
[378057443,1754710240709,-159.71,0.000188,2]
[378057444,1754710240720,-159.71,0.000188,2]
[378057445,1754710240729,-159.71,0.000188,2]
[378057446,1754710240738,-159.71,0.000188,2]
[378057447,1754710240748,-159.71,0.000188,2]
[378057448,1754710240758,-159.71,0.000188,2]
[378057449,1754710240767,-159.71,0.000188,2]
[378057450,1754710240778,-159.71,0.000188,2]
[378057451,1754710240787,-159.71,0.000188,2]
[378057452,1754710240797,-159.71,0.000188,2]
[378057453,1754710240806,-159.71,0.000188,2]
[378057454,1754710240815,-159.71,0.000188,2]
[378057455,1754710240825,-159.71,0.000188,2]
[378057456,1754710240834,-159.71,0.000188,2]
[378057457,1754710240844,-159.71,0.000188,2]
[378057458,1754710240854,-159.71,0.000188,2]
[378057459,1754710240865,-159.71,0.000188,2]
[378057460,1754710240876,-159.71,0.000188,2]
[378057461,1754710240885,-159.71,0.000188,2]
[378057462,1754710240894,-159.71,0.000188,2]
[378057463,1754710240904,-159.71,0.000188,2]
[378057464,1754710240914,-159.71,0.000188,2]
[378057465,1754710240923,-159.71,0.000188,2]
[378057466,1754710240932,-159.71,0.000188,2]
[378057467,1754710240941,-159.71,0.000188,2]
[378057468,1754710240950,-159.71,0.000188,2]
[378057469,1754710240960,-159.71,0.000188,2]
[378057470,1754710240969,-159.71,0.000188,2]
[378057471,1754710240979,-159.71,0.000188,2]
[378057472,1754710240988,-159.71,0.000188,2]
[378057473,1754710240999,-159.71,0.000188,2]
[378057474,1754710241009,-159.71,0.000188,2]
[378057475,1754710241018,-159.71,0.000188,2]
[378057476,1754710241029,-159.71,0.000188,2]
[378057477,1754710241040,-159.71,0.000188,2]
[378057478,1754710241050,-159.71,0.000188,2]
[378057479,1754710241059,-159.71,0.000188,2]
[378057480,1754710241068,-159.71,0.000188,2]
[378057481,1754710241078,-159.71,0.000188,2]
[378057482,1754710241088,-159.71,0.000188,2]
[378057483,1754710241097,-159.71,0.000188,2]
[378057484,1754710241107,-159.71,0.000188,2]
[378057485,1754710241117,-159.71,0.000188,2]
[378057486,1754710241127,-159.71,0.000188,2]
[378057487,1754710241137,-159.71,0.000188,2]
[378057488,1754710241147,-159.71,0.000188,2]
[378057489,1754710241156,-159.71,0.000188,2]
[378057490,1754710241166,-159.71,0.000188,2]
[378057491,1754710241175,-159.71,0.000188,2]
[378057492,1754710241184,-159.71,0.000188,2]
[378057493,1754710241193,-159.71,0.000188,2]
[378057494,1754710241203,-159.71,0.000188,2]
[378057495,1754710241212,-159.71,0.000188,2]
[378057496,1754710241221,-159.71,0.000188,2]
[378057497,1754710241230,-159.71,0.000188,2]
[378057498,1754710241239,-159.71,0.000188,2]
[378057499,1754710241249,-159.71,0.000188,2]
[378057500,1754710241258,-159.71,0.000188,2]
[378057501,1754710241267,-159.71,0.000188,2]
[378057502,1754710241276,-159.71,0.000188,2]
[378057503,1754710241285,-159.71,0.000188,2]
[378057504,1754710241294,-159.71,0.000188,2]
[378057505,1754710241303,-159.71,0.000188,2]
[378057506,1754710241312,-159.71,0.000188,2]
[378057507,1754710241321,-159.71,0.000188,2]
[378057508,1754710241330,-159.71,0.000188,2]
[378057509,1754710241339,-159.71,0.000188,2]
[378057510,1754710241347,-159.71,0.000188,2]
[378057511,1754710241357,-159.71,0.000188,2]
[378057512,1754710241366,-159.71,0.000188,2]
[378057513,1754710241375,-159.71,0.000188,2]
[378057514,1754710241384,-159.71,0.000188,2]
[378057515,1754710241394,-2031.25469,0.0001881,2]
[378057516,1754710241403,-2292.94519518,0.00018859,2]
[378057517,1754710241412,-333.27510906,0.00018863,2]
[378057518,1754710241422,-182.02069468,0.000189,2]
[378057519,1754710241432,-2292.94519518,0.0001892,2]
[378057520,1754710241442,-2031.25469,0.0001893,2]
[378057521,1754710241451,-150.0,0.00018981,2]
[378057522,1754710241462,-539.19615189,0.00018982,2]
[378057523,1754710241472,-687.21078182,0.00018983,2]
[378057524,1754710241482,-835.22541174,0.00018984,2]
[378057525,1754710241491,-983.24004167,0.00018985,2]
[378057526,1754710241501,-1131.2546716,0.00018986,2]
[378057527,1754710241510,-1279.26930153,0.00018987,2]
[378057528,1754710241520,-1427.28393146,0.00018988,2]
[378057529,1754710241529,-1575.29856139,0.00018989,2]
[378057530,1754710241539,-1723.31319133,0.0001899,2]
[378057531,1754710241548,-159.71,0.0001899,2]
[378057532,1754710241559,-159.71,0.0001899,2]
[378057533,1754710241569,-159.71,0.0001899,2]
[378057534,1754710241578,-159.71,0.0001899,2]
[378057535,1754710241587,-159.71,0.0001899,2]
[378057536,1754710241596,-159.71,0.0001899,2]
[378057537,1754710241606,-159.71,0.0001899,2]
[378057538,1754710241615,-159.71,0.0001899,2]
[378057539,1754710241624,-159.71,0.0001899,2]
[378057540,1754710241634,-159.71,0.0001899,2]
[378057541,1754710241643,-159.71,0.0001899,2]
[378057542,1754710241652,-159.71,0.0001899,2]
[378057543,1754710241661,-159.71,0.0001899,2]
[378057544,1754710241673,-159.71,0.0001899,2]
[378057545,1754710241682,-159.71,0.0001899,2]
[378057546,1754710241692,-159.71,0.0001899,2]
[378057547,1754710241701,-159.71,0.0001899,2]
[378057548,1754710241711,-159.71,0.0001899,2]
[378057549,1754710241720,-159.71,0.0001899,2]
[378057550,1754710241729,-159.71,0.0001899,2]
[378057551,1754710241739,-159.71,0.0001899,2]
[378057552,1754710241749,-159.71,0.0001899,2]
[378057553,1754710241758,-159.71,0.0001899,2]
[378057554,1754710241767,-151.0,0.00018999,2]
[378057555,1754710241776,-2000.0,0.00019,2]
[378057556,1754710241785,-842.603,0.00019,2]
[378057557,1754710241795,-1342.447,0.00019,2]
[378057558,1754710241803,-1115.204,0.00019,2]
[378057559,1754710241813,-56976.26081196,0.00019,2]
[378057560,1754710241822,-579007.18099409,0.00019,2]
[378057561,1754710241847,-1521.50393047,0.00019,2]
[378057562,1754710241859,-355.28179991,0.00019,2]
[378057609,1754710245619,-1237.31323416,0.0001878,2]
[378057610,1754710245901,-288.05571284,0.0001878,2]
[378057616,1754710326478,303.0,0.000169,2]
[378057618,1754710413151,343.96057,0.00017989,2]
[378057628,1754710818512,434.35,0.00015068,2]
[378057629,1754710818731,434.35,0.00016668,2]
[378057630,1754710860919,300.0,0.000159,2]
[378057631,1754710861333,294.0,0.0001708,2]
[378057634,1754711026277,514.0,0.00017348,2]
[378057636,1754711131227,656.93,0.00017876,2]
[378057637,1754711167743,1000.0,0.00017851,2]
[378057640,1754711195779,23900.0,0.00017883,2]
[378057641,1754711196633,153.06,0.00013699,2]
[378057643,1754711298139,22163.3,0.00017914,2]
[378057646,1754711347350,10759.33,0.00017944,2]
[378057647,1754711398763,292.0,0.000149,2]
[378057648,1754711399130,286.0,0.0001608,2]
[378057649,1754711399520,280.0,0.0001727,2]
[378057650,1754711411711,169.54,0.00017923,2]
[378057659,1754711431770,-5149.47,0.00018008,2]
[378057660,1754711431781,-300.0,0.00018014,2]
[378057661,1754711431791,-500.0,0.0001802,2]
[378057662,1754711431802,-300.0,0.00018032,2]
[378057663,1754711431812,-300.0,0.00018059,2]
[378057664,1754711431822,-167.45,0.0001818,2]
[378057665,1754711431832,-270.82,0.00018198,2]
[378057666,1754711431841,-434.35,0.00018268,2]
[378057667,1754711431851,-500.17,0.00018321,2]
[378057668,1754711431861,-274.0,0.0001845,2]
[378057669,1754711431872,-521.0,0.00018459,2]
[378057670,1754711431882,-1200.0,0.00018461,2]
[378057671,1754711431892,-300.0,0.00018461,2]
[378057672,1754711431903,-2000.0,0.00018462,2]
[378057673,1754711431912,-2000.0,0.00018462,2]
[378057674,1754711431922,-2000.0,0.00018462,2]
[378057675,1754711431931,-195.186,0.00018462,2]
[378057676,1754711431940,-15866.21328422,0.000185,2]
[378057677,1754711431950,-447.85968092,0.00018774,2]
[378057678,1754711431959,-208.0,0.00018794,2]
[378057679,1754711431969,-638.0,0.00018795,2]
[378057680,1754711431979,-1083.802,0.00018795,2]
[378057681,1754711431988,-169.54,0.00018819,2]
[378057682,1754711431998,-200.0,0.00018848,2]
[378057683,1754711432007,-1315.55906566,0.00018884,2]
[378057684,1754711432016,-2985.33064457,0.000189,2]
[378057685,1754711432025,-602.34634899,0.000189,2]
[378057686,1754711432034,-223.93655079,0.000189,2]
[378057687,1754711432045,-500.0,0.00018973,2]
[378057688,1754711432055,-500.0,0.00018973,2]
[378057689,1754711432064,-500.0,0.00018973,2]
[378057690,1754711432074,-500.0,0.00018973,2]
[378057691,1754711432084,-500.0,0.00018973,2]
[378057692,1754711432098,-613.04058274,0.00018973,2]
[378057693,1754711432110,-503.38888171,0.00018973,2]
[378057694,1754711432121,-365.98531029,0.00018973,2]
[378057695,1754711432131,-502.19888233,0.00018973,2]
[378057696,1754711432143,-312.44927554,0.00018973,2]
[378057697,1754711432154,-169.82322952,0.00018973,2]
[378057698,1754711432163,-500.0,0.00018973,2]
[378057699,1754711432173,-500.0,0.00018973,2]
[378057700,1754711432183,-397.99617915,0.00018973,2]
[378057702,1754711432192,-503.35613335,0.00018973,2]
[378057704,1754711432201,-503.03723788,0.00018973,2]
[378057705,1754711432210,-161.66432477,0.00018973,2]
[378057706,1754711432220,-500.0,0.00018973,2]
[378057707,1754711432229,-500.0,0.00018973,2]
[378057708,1754711432238,-5782.09243081,0.00018984,2]
[378057709,1754711432247,-500.0,0.00018984,2]
[378057710,1754711432257,-151.0,0.00018984,2]
[378057711,1754711432266,-1452.1266665,0.00018995,2]
[378057712,1754711432275,-248.01755743,0.00018999,2]
[378057713,1754711432284,-554.60213215,0.00018999,2]
[378057714,1754711432294,-80639.61935,0.00019,2]
[378057716,1754711432311,-863.1997107,0.00019,2]
[378057719,1754711432330,-1166.165,0.00019,2]
[378057722,1754711432351,-450.0,0.00019,2]
[378057725,1754711432362,-59955.23688955,0.00019,2]
[378057727,1754711432374,-459.10101742,0.00019,2]
[378057729,1754711432389,-1366.37242967,0.00019,2]
[378057731,1754711432497,-82713.85001005,0.00019,2]
[378057750,1754711437760,-300.55768777,0.00019,2]
[378057925,1754711440017,-215132.94842032,0.00019,2]
[378057927,1754711440027,-156.02758204,0.00019,2]
[378057929,1754711440036,-134499.53321533,0.00019,2]
[378057931,1754711440045,-995.53643,0.00019,2]
[378057933,1754711440055,-161.77905648,0.00019,2]
[378057935,1754711440065,-148487.9549996,0.00019013,2]
[378057937,1754711440074,-283.6190034,0.00019026,2]
[378057939,1754711440084,-500.0,0.00019039,2]
[378057941,1754711440093,-80482.6646745,0.00019083,2]
[378057943,1754711440106,-500.0,0.00019096,2]
[378057945,1754711440115,-151.0,0.00019178,2]
[378057947,1754711440124,-177.49,0.00019178,2]
[378057949,1754711440134,-995.53643,0.0001921,2]
[378057951,1754711440143,-500.17,0.00019237,2]
[378057953,1754711440153,-301.68094487,0.00019385,2]
[378057955,1754711440162,-514.0,0.00019395,2]
[378057957,1754711440172,-290.0,0.00019452,2]
[378057959,1754711440181,-1004.96536559,0.00019521,2]
[378057961,1754711440191,-1017.87532766,0.00019521,2]
[378057963,1754711440200,-1000.0,0.00019521,2]
[378057965,1754711440210,-639.87183191,0.00019521,2]
[378057967,1754711440220,-1004.29631946,0.00019521,2]
[378057969,1754711440230,-502.48814613,0.00019521,2]
[378057971,1754711440239,-502.78563802,0.00019521,2]
[378057973,1754711440249,-890.5703896,0.00019521,2]
[378057975,1754711440258,-1052.41412054,0.00019521,2]
[378057977,1754711440268,-150.0,0.00019573,2]
[378057979,1754711440277,-150.0,0.00019573,2]
[378057981,1754711440286,-150.0,0.00019578,2]
[378057983,1754711440295,-150.0,0.00019597,2]
[378057985,1754711440305,-150.0,0.00019598,2]
[378057987,1754711440315,-150.0,0.00019621,2]
[378057989,1754711440324,-268.0,0.0001963,2]
[378057991,1754711440334,-150.0,0.00019631,2]
[378057993,1754711440343,-150.0,0.0001964,2]
[378057995,1754711440352,-166.89,0.00019645,2]
[378057997,1754711440361,-150.0,0.00019653,2]
[378057999,1754711440370,-150.0,0.00019665,2]
[378058001,1754711440380,-2985.33064456,0.00019681,2]
[378058003,1754711440389,-150.0,0.00019682,2]
[378058005,1754711440398,-150.0,0.00019683,2]
[378058007,1754711440408,-150.0,0.00019694,2]
[378058009,1754711440417,-150.0,0.00019696,2]
[378058011,1754711440426,-150.0,0.0001971,2]
[378058013,1754711440436,-995.53644,0.0001971,2]
[378058015,1754711440445,-169.54,0.00019715,2]
[378058017,1754711440455,-150.0,0.00019723,2]
[378058019,1754711440464,-150.0,0.00019725,2]
[378058021,1754711440474,-150.0,0.00019726,2]
[378058023,1754711440483,-150.0,0.00019726,2]
[378058025,1754711440493,-500.0,0.00019726,2]
[378058027,1754711440503,-500.0,0.00019726,2]
[378058029,1754711440512,-150.0,0.00019726,2]
[378058031,1754711440521,-150.0,0.00019726,2]
[378058033,1754711440530,-150.29705836,0.00019726,2]
[378058035,1754711440540,-150.13659139,0.00019726,2]
[378058037,1754711440549,-150.0,0.00019726,2]
[378058039,1754711440559,-205.71785235,0.00019726,2]
[378058041,1754711440568,-150.0,0.00019726,2]
[378058043,1754711440577,-500.0,0.00019726,2]
[378058045,1754711440587,-151.50314581,0.00019726,2]
[378058047,1754711440596,-150.0,0.00019726,2]
[378058049,1754711440606,-150.0,0.00019726,2]
[378058051,1754711440622,-150.0,0.00019726,2]
[378058053,1754711440631,-150.0,0.00019726,2]
[378058055,1754711440641,-150.0,0.00019726,2]
[378058057,1754711440650,-500.0,0.00019726,2]
[378058059,1754711440659,-150.0,0.00019726,2]
[378058061,1754711440668,-150.0,0.00019726,2]
[378058063,1754711440677,-155.41950886,0.00019726,2]
[378058065,1754711440687,-154.40342569,0.00019726,2]
[378058067,1754711440696,-150.0,0.00019726,2]
[378058069,1754711440706,-500.0,0.00019726,2]
[378058071,1754711440715,-500.0,0.00019726,2]
[378058073,1754711440724,-150.0,0.00019726,2]
[378058075,1754711440734,-500.0,0.00019726,2]
[378058077,1754711440743,-500.0,0.00019726,2]
[378058079,1754711440751,-150.0,0.00019726,2]
[378058081,1754711440760,-150.0,0.00019726,2]
[378058083,1754711440770,-150.0,0.00019726,2]
[378058085,1754711440779,-150.0,0.00019726,2]
[378058087,1754711440788,-150.0,0.00019726,2]
[378058089,1754711440797,-155.91733727,0.00019726,2]
[378058091,1754711440807,-150.0,0.00019726,2]
[378058093,1754711440816,-150.0,0.00019726,2]
[378058095,1754711440825,-500.0,0.00019726,2]
[378058097,1754711440834,-156.587,0.00019726,2]
[378058099,1754711440843,-150.0,0.00019729,2]
[378058101,1754711440852,-150.0,0.00019732,2]
[378058103,1754711440862,-150.0,0.00019751,2]
[378058105,1754711440871,-150.0,0.00019756,2]
[378058107,1754711440879,-150.0,0.00019761,2]
[378058109,1754711440889,-150.0,0.00019766,2]
[378058110,1754711440898,-150.0,0.00019768,2]
[378058111,1754711440907,-1000.0,0.00019768,2]
[378058112,1754711440916,-150.0,0.0001977,2]
[378058113,1754711440925,-150.0,0.0001979,2]
[378058114,1754711440934,-3537.56,0.000198,2]
[378058115,1754711440943,-500.0,0.00019808,2]
[378058116,1754711440952,-250.0,0.00019808,2]
[378058117,1754711440961,-300.0,0.00019808,2]
[378058118,1754711440971,-250.0,0.00019808,2]
[378058119,1754711440980,-300.0,0.00019808,2]
[378058121,1754711440989,-300.0,0.00019808,2]
[378058122,1754711440998,-500.0,0.00019808,2]
[378058124,1754711441008,-1000.0,0.00019808,4]
[378058126,1754711441017,-250.0,0.00019808,2]
[378058128,1754711441027,-300.0,0.00019808,2]
[378058130,1754711441036,-300.0,0.00019808,2]
[378058132,1754711441046,-150.0,0.00019812,2]
[378058134,1754711441055,-150.0,0.00019814,2]
[378058136,1754711441065,-150.0,0.00019817,2]
[378058138,1754711441075,-155.059934,0.0001982,2]
[378058140,1754711441084,-152.335455,0.0001982,2]
[378058143,1754711441098,-151.543144,0.0001982,2]
[378058145,1754711441110,-152.757649,0.0001982,2]
[378058147,1754711441119,-150.0,0.00019824,2]
[378058149,1754711441129,-150.0,0.00019852,2]
[378058151,1754711441139,-150.0,0.00019866,2]
[378058153,1754711441148,-434.35,0.00019868,2]
[378058155,1754711441157,-150.0,0.00019874,2]
[378058157,1754711441166,-1000.0,0.00019885,2]
[378058159,1754711441176,-1000.0,0.00019885,2]
[378058161,1754711441186,-1000.0,0.00019885,2]
[378058163,1754711441195,-1000.0,0.00019885,2]
[378058165,1754711441204,-1000.0,0.00019885,2]
[378058167,1754711441214,-1000.0,0.00019885,2]
[378058169,1754711441223,-1000.0,0.00019885,2]
[378058170,1754711441232,-1000.0,0.00019885,2]
[378058172,1754711441242,-1000.0,0.00019885,2]
[378058175,1754711441251,-1000.0,0.00019885,2]
[378058177,1754711441261,-1000.0,0.00019885,2]
[378058178,1754711441270,-1000.0,0.00019885,2]
[378058180,1754711441279,-1000.0,0.00019885,2]
[378058182,1754711441289,-1000.0,0.00019885,2]
[378058184,1754711441298,-1000.0,0.00019885,2]
[378058187,1754711441307,-1000.0,0.00019885,2]
[378058189,1754711441316,-1000.0,0.00019885,2]
[378058190,1754711441326,-1000.0,0.00019885,2]
[378058192,1754711441335,-278.1392,0.00019885,2]
[378058195,1754711441345,-1000.0,0.00019885,2]
[378058197,1754711441354,-1000.0,0.00019885,2]
[378058199,1754711441364,-1000.0,0.00019885,2]
[378058201,1754711441373,-1000.0,0.00019885,2]
[378058203,1754711441383,-1000.0,0.00019885,2]
[378058204,1754711441392,-1000.0,0.00019885,2]
[378058206,1754711441401,-1000.0,0.00019885,2]
[378058207,1754711441411,-1000.0,0.00019885,2]
[378058208,1754711441420,-1000.0,0.00019885,2]
[378058209,1754711441430,-1000.0,0.00019885,2]
[378058210,1754711441440,-1000.0,0.00019885,2]
[378058211,1754711441450,-953.4819,0.00019885,2]
[378058212,1754711441459,-185.0,0.00019894,2]
[378058213,1754711441468,-513.86158872,0.000199,2]
[378058214,1754711441651,-150.88021223,0.000199,2]
[378058215,1754711441661,-150.0,0.00019924,2]
[378058216,1754711441671,-150.0,0.00019932,2]
[378058217,1754711441682,-514.0,0.0001997,2]
[378058218,1754711441691,-3932.5914183,0.00019976,2]
[378058219,1754711441701,-151.0,0.00019979,2]
[378058220,1754711441710,-151.0,0.00019979,2]
[378058221,1754711441719,-151.0,0.00019979,2]
[378058222,1754711441728,-151.0,0.00019979,2]
[378058223,1754711441738,-156.908936,0.00019979,2]
[378058224,1754711441747,-153.478788,0.00019979,2]
[378058225,1754711441758,-151.0,0.00019979,2]
[378058226,1754711441767,-151.0,0.00019979,2]
[378058227,1754711441777,-151.0,0.00019979,2]
[378058228,1754711441787,-150.0,0.0001998,2]
[378058229,1754711441796,-539.19615189,0.00019981,2]
[378058230,1754711441806,-687.21078182,0.00019982,2]
[378058231,1754711441815,-835.22541174,0.00019983,2]
[378058232,1754711441825,-983.24004167,0.00019984,2]
[378058233,1754711441834,-1000.0,0.00019985,2]
[378058234,1754711441843,-1012.44845628,0.00019985,2]
[378058235,1754711441854,-32181.98722788,0.00019985,2]
[378058236,1754711441863,-214.51586048,0.00019985,2]
[378058237,1754711441875,-1131.2546716,0.00019986,2]
[378058238,1754711441887,-293.722399,0.00019986,2]
[378058239,1754711441897,-173.27,0.00019987,2]
[378058240,1754711441908,-1279.26930153,0.00019987,2]
[378058241,1754711441917,-1427.28393146,0.00019988,2]
[378058242,1754711441927,-1575.29856139,0.00019989,2]
[378058243,1754711441936,-1723.31319133,0.0001999,2]
[378058244,1754711441947,-159.71,0.0001999,2]
[378058245,1754711441957,-150.0,0.0002,2]
[378058246,1754711441966,-152.949707,0.0002,2]
[378058247,1754711441975,-500.0,0.0002,2]
[378058248,1754711441985,-500.0,0.0002,2]
[378058249,1754711441994,-150.0,0.0002,2]
[378058250,1754711442004,-150.0,0.0002,2]
[378058251,1754711442014,-150.0,0.0002,2]
[378058252,1754711442024,-151.48586016,0.0002,2]
[378058253,1754711442033,-500.0,0.0002,2]
[378058254,1754711442042,-150.0,0.0002,2]
[378058255,1754711442051,-150.31342015,0.0002,2]
[378058256,1754711442061,-150.0,0.0002,2]
[378058257,1754711442070,-150.0,0.0002,2]
[378058258,1754711442079,-500.0,0.0002,2]
[378058259,1754711442088,-190.41594232,0.0002,2]
[378058260,1754711442099,-150.0,0.0002,2]
[378058261,1754711442108,-244.13330318,0.0002,2]
[378058262,1754711442118,-500.0,0.0002,2]
[378058263,1754711442127,-516.02550625,0.0002,2]
[378058264,1754711442136,-150.0,0.0002,2]
[378058265,1754711442146,-500.0,0.0002,2]
[378058266,1754711442156,-500.0,0.0002,2]
[378058267,1754711442165,-150.0,0.0002,2]
[378058268,1754711442176,-150.0,0.0002,2]
[378058269,1754711442186,-150.0,0.0002,2]
[378058270,1754711442196,-150.0,0.0002,2]
[378058271,1754711442205,-500.0,0.0002,2]
[378058272,1754711442214,-20564.8515957,0.0002,2]
[378058273,1754711442235,-605.33190001,0.0002,2]
[378058278,1754711445887,-582.8495,0.0001971,3]
[378058284,1754711688315,653.0,0.0002111,90]
[378058285,1754711771481,250.0,0.00015,2]
[378058286,1754711772554,300.0,0.00017,2]
[378058288,1754711842651,389.18,0.00015068,2]
[378058289,1754711842886,389.18,0.00016715,2]
[378058290,1754711937716,267.0,0.000158,2]
[378058291,1754711938202,262.0,0.0001698,2]
[378058296,1754712105762,515.0,0.00017395,2]
[378058302,1754712316704,158.17,0.00013699,2]
[378058305,1754712346756,514.0,0.00017395,2]
[378058308,1754712471231,266.0,0.000148,2]
[378058309,1754712471756,260.0,0.0001598,2]
[378058310,1754712472137,255.0,0.0001717,2]
[378058325,1754712631942,-300.0,0.0001807,2]
[378058326,1754712631952,-300.0,0.00018119,2]
[378058327,1754712631961,-58.42119443,0.00018119,2]
[378058328,1754712631998,-1141.57880557,0.00018119,2]
[378058329,1754712632009,-300.0,0.0001812,2]
[378058330,1754712632019,-500.0,0.0001812,2]
[378058331,1754712632028,-250.0,0.0001812,2]
[378058332,1754712632037,-300.0,0.0001812,2]
[378058333,1754712632047,-333.27510906,0.0001817,2]
[378058334,1754712632056,-300.0,0.00018184,2]
[378058335,1754712632065,-5782.09243081,0.00018313,2]
[378058336,1754712632075,-459.0,0.00018323,2]
[378058337,1754712632084,-4740.48521569,0.00018324,2]
[378058338,1754712632099,-1170.27,0.00018324,2]
[378058339,1754712632169,-448.48401838,0.00018324,2]
[378058340,1754712632202,-510.0,0.00018324,2]
[378058341,1754712632213,-17030.76076593,0.00018324,2]
[378058342,1754712632220,-175.19,0.00018324,2]
[378058343,1754712632228,-25433.73470181,0.00018324,2]
[378058344,1754712632238,-3558.09529819,0.00018324,2]
[378058345,1754712632246,-124.66945825,0.00018347,2]
[378058346,1754712632332,-378.23054175,0.00018347,2]
[378058347,1754712632341,-250.0,0.0001835,2]
[378058348,1754712632350,-430.76945675,0.00018357,2]
[378058519,1754712640054,-183.12054325,0.00018357,2]
[378058521,1754712640064,-156.63432221,0.00018362,2]
[378058804,1754712642872,-232.54567779,0.00018362,2]
[378058806,1754712642882,-120.38285694,0.00018375,2]
[378058845,1754712643239,-837.17355036,0.00018375,2]
[378059104,1754712645921,-42.4435927,0.00018375,2]
[378059106,1754712645931,-1000.0,0.0001863,2]
[378059109,1754712645940,-239.84119403,0.0001868,2]
[378059111,1754712645950,-160.0,0.0001868,2]
[378059113,1754712645960,-887.31521327,0.0001868,2]
[378059146,1754712646260,-58.40334413,0.0001868,2]
[378059388,1754712758273,391.81,0.00015068,2]
[378059389,1754712758511,391.81,0.00016686,2]
[378059394,1754713006595,255.0,0.000157,2]
[378059395,1754713007068,250.0,0.0001688,2]
[378059397,1754713156238,515.0,0.00017672,2]
[378059399,1754713166418,161.72384046,0.00018004,2]
[378059400,1754713190081,5036.53043652,0.00018004,2]
[378059401,1754713227449,153.14,0.00013699,2]
[378059405,1754713436587,1000.0,0.00017745,2]
[378059406,1754713448134,162.65,0.00017745,2]
[378059407,1754713458704,250.0,0.00017745,2]
[378059408,1754713544709,256.0,0.000147,2]
[378059409,1754713545575,251.0,0.0001588,2]
[378059410,1754713545634,246.0,0.0001707,2]
[378059412,1754713574881,250.0,0.00015,2]
[378059414,1754713581036,170.0,0.00017641,7]
[378059415,1754713654884,10169.99,0.00017603,2]
[378059417,1754713701601,2447.39619006,0.00012,30]
[378059418,1754713708740,817.29,0.00017605,2]
[378059419,1754713711108,1164.53088431,0.00018,2]
[378059422,1754713738004,375.67,0.00015068,2]
[378059423,1754713738223,375.67,0.00016645,2]